bitfinex/quotes_BTCUSD_20251120
["timestamp","ask_amount","ask_price","bid_price","bid_amount"]
[1763618934607,0.10072371,92883.0,92882.0,0.31532697]
[1763618934806,0.10072371,92883.0,92882.0,0.31632697]
[1763618935710,0.10072371,92883.0,92882.0,0.31732697]
[1763618936521,0.09708371,92883.0,92882.0,0.31732697]
[1763618936725,0.10072371,92883.0,92882.0,0.31732697]
[1763618936926,0.09708371,92883.0,92882.0,0.102]
[1763618937132,0.10072371,92883.0,92882.0,0.102]
[1763618937858,0.10072371,92883.0,92882.0,0.31732697]
[1763618941382,0.10072371,92883.0,92882.0,0.31732697]
[1763618943481,0.10072371,92883.0,92882.0,0.102]
[1763618946251,0.10072371,92883.0,92881.0,0.08712067]
[1763618946455,0.10072371,92883.0,92881.0,0.10865359]
[1763618947555,0.10072371,92883.0,92881.0,0.10965359]
[1763618948151,0.10072371,92883.0,92882.0,0.1]
[1763618949705,0.10072371,92883.0,92882.0,0.101]
[1763618952769,0.14023371,92883.0,92882.0,0.101]
[1763618956179,0.16705928,92883.0,92882.0,0.101]
[1763618959280,0.17939928,92883.0,92882.0,0.101]
[1763618959525,0.15257371,92883.0,92882.0,0.101]
[1763618959823,0.11306371,92883.0,92882.0,0.101]
[1763618961705,0.10072371,92883.0,92882.0,0.101]
[1763618965143,0.10072371,92883.0,92882.0,0.31632697]
[1763618966373,0.00364,92883.0,92882.0,0.31632697]
[1763618969931,0.00364,92883.0,92882.0,0.64363734]
[1763618972842,0.19716978,92897.0,92892.0,0.22606881]
[1763618973055,0.00364,92896.0,92893.0,0.01076507]
[1763618973214,0.01440472,92896.0,92893.0,0.01076507]
[1763618973619,0.01440472,92896.0,92895.0,0.1]
[1763618974017,0.00364,92896.0,92895.0,0.1]
[1763618975089,0.00364,92896.0,92895.0,0.101]
[1763618975314,0.00364,92896.0,92895.0,0.102]
[1763618977814,0.0279132,92896.0,92895.0,0.102]
[1763618979820,0.24320772,92896.0,92895.0,0.102]
[1763618980223,0.0279132,92896.0,92895.0,0.102]
[1763618982525,0.0680632,92896.0,92895.0,0.102]
[1763618983228,0.08823568,92896.0,92895.0,0.102]
[1763618983856,0.08823568,92896.0,92895.0,0.1]
[1763618983997,0.0107653,92891.0,92887.0,0.01076576]
[1763618984212,0.01184,92888.0,92887.0,0.01076576]
[1763618984625,0.02682557,92893.0,92889.0,0.01076553]
[1763618984952,0.02414,92892.0,92890.0,0.22607384]
[1763618985358,0.02785,92891.0,92890.0,0.22607384]
[1763618985979,0.05199,92891.0,92890.0,0.22607384]
[1763618986735,0.05199,92891.0,92890.0,0.22707384]
[1763618986938,0.05199,92891.0,92890.0,0.101]
[1763618987427,0.05199,92891.0,92890.0,0.102]
[1763618987626,0.05563,92891.0,92890.0,0.102]
[1763618988480,0.08245557,92891.0,92890.0,0.102]
[1763618988642,0.08245557,92891.0,92890.0,0.002]
[1763618989608,0.10263823,92891.0,92890.0,0.002]
[1763618990115,0.01076611,92884.0,92880.0,0.01076658]
[1763618990363,0.09708371,92881.0,92880.0,0.0108931]
[1763618991183,0.09708371,92881.0,92880.0,0.1118931]
[1763618991693,0.09708371,92881.0,92880.0,0.1128931]
[1763618992551,0.09708371,92881.0,92880.0,0.1118931]
[1763618992906,0.09708371,92881.0,92880.0,0.1128931]
[1763618994705,0.09708371,92881.0,92880.0,0.10212652]
[1763618994706,0.11309371,92881.0,92880.0,0.10212652]
[1763618994909,0.13723371,92881.0,92880.0,0.10212652]
[1763618995537,0.11309371,92881.0,92880.0,0.10212652]
[1763618997163,0.13723371,92881.0,92880.0,0.10212652]
[1763618997344,0.29225358,92881.0,92880.0,0.07712652]
[1763618997548,0.29225358,92881.0,92847.0,0.21540647]
[1763618997549,0.0107704,92847.0,92844.0,0.03234042]
[1763618997741,0.00945,92845.0,92844.0,0.03234042]
[1763618997973,0.00364,92846.0,92844.0,0.03234042]
[1763618998166,0.00364,92846.0,92845.0,0.01626]
[1763618998553,0.00364,92846.0,92845.0,0.03927]
[1763618999696,0.00364,92846.0,92845.0,0.04027]
[1763618999932,0.00364,92846.0,92845.0,0.04127]
[1763619000142,0.00364,92846.0,92845.0,0.14127]
[1763619000359,0.00364,92846.0,92845.0,0.16281127]
[1763619000996,0.00364,92846.0,92845.0,0.14127]
[1763619001199,0.00364,92846.0,92845.0,0.16281127]
[1763619005179,0.00364,92846.0,92845.0,0.14127]
[1763619005382,0.00364,92846.0,92845.0,0.16281127]
[1763619005592,0.09708371,92853.0,92852.0,0.21539654]
[1763619005771,0.00364,92853.0,92852.0,0.26498619]
[1763619006072,0.00364,92853.0,92852.0,0.26612654]
[1763619006269,0.02682557,92876.0,92875.0,0.2153432]
[1763619006473,0.0037664,92876.0,92875.0,0.2153432]
[1763619006909,0.0037664,92876.0,92875.0,0.2546432]
[1763619008493,0.0037664,92876.0,92875.0,0.3546432]
[1763619009350,0.0037664,92876.0,92875.0,0.3556432]
[1763619009553,0.0037664,92876.0,92875.0,0.3566432]
[1763619009753,0.0037664,92876.0,92875.0,0.3556432]
[1763619009939,0.0001264,92876.0,92875.0,0.3566432]
[1763619010135,0.0037664,92876.0,92875.0,0.1413]
[1763619010743,0.0037664,92876.0,92875.0,0.1403]
[1763619011188,0.0037664,92876.0,92875.0,0.1413]
[1763619015912,0.0037664,92876.0,92875.0,0.3566432]
[1763619023566,0.0037664,92876.0,92875.0,0.15130335]
[1763619023772,0.0037664,92876.0,92875.0,0.18945767]
[1763619024639,0.0037664,92876.0,92875.0,0.19597767]
[1763619025189,0.0037664,92876.0,92875.0,0.29597767]
[1763619025434,0.0037664,92876.0,92875.0,0.27444335]
[1763619025741,0.0037664,92876.0,92875.0,0.29712335]
[1763619034562,0.0057664,92876.0,92875.0,0.29712335]
[1763619045209,0.0057664,92876.0,92875.0,0.35521906]
[1763619046321,0.0057664,92876.0,92875.0,0.29712335]
[1763619047993,0.0057664,92876.0,92875.0,0.35526693]
[1763619051342,0.0057664,92876.0,92875.0,0.29712335]
[1763619061829,0.0057664,92876.0,92875.0,0.35526355]
[1763619063028,0.0057664,92876.0,92875.0,0.29712335]
[1763619066086,0.0021264,92876.0,92875.0,0.62012335]
[1763619066274,0.00022836,92897.0,92896.0,0.21529452]
[1763619066429,0.00386836,92897.0,92896.0,0.26564452]
[1763619068176,0.00486836,92897.0,92896.0,0.24177452]
[1763619068350,0.00486836,92897.0,92896.0,0.34177452]
[1763619068756,0.00491052,92897.0,92896.0,0.34177452]
[1763619068971,0.00591052,92897.0,92896.0,0.34177452]
[1763619069166,0.00591052,92897.0,92896.0,0.12648]
[1763619069367,0.00591052,92897.0,92896.0,0.11078]
[1763619070782,0.00591052,92897.0,92896.0,0.32607452]
[1763619071228,0.00591052,92897.0,92896.0,0.36564452]
[1763619072010,0.00591052,92897.0,92896.0,0.34177452]
[1763619072212,0.00591052,92897.0,92896.0,0.32607452]
[1763619072618,0.00591052,92897.0,92896.0,0.11078]
[1763619072798,0.27355272,92897.0,92896.0,0.1]
[1763619073387,0.29371371,92897.0,92896.0,0.1]
[1763619073633,0.29271371,92897.0,92896.0,0.1]
[1763619074039,0.29371371,92897.0,92896.0,0.1]
[1763619074237,0.01076716,92875.0,92868.0,0.05806863]
[1763619074413,0.01440727,92874.0,92870.0,0.01076773]
[1763619074773,0.09708371,92871.0,92870.0,0.01076773]
[1763619076032,0.09708371,92871.0,92870.0,0.11076773]
[1763619076452,0.09808371,92871.0,92870.0,0.11076773]
[1763619077265,0.09908371,92871.0,92870.0,0.11076773]
[1763619078519,0.09908371,92871.0,92870.0,0.1]
[1763619078520,0.14004371,92871.0,92870.0,0.1]
[1763619079348,0.13904371,92871.0,92870.0,0.1]
[1763619079760,0.13904371,92871.0,92870.0,0.101]
[1763619080578,0.13804371,92871.0,92870.0,0.101]
[1763619081100,0.13804371,92871.0,92870.0,0.102]
[1763619081318,0.09708371,92871.0,92870.0,0.15235]
[1763619081520,0.09708371,92871.0,92870.0,0.12848]
[1763619081874,0.09708371,92871.0,92870.0,0.15235]
[1763619084780,0.09708371,92871.0,92870.0,0.12848]
[1763619085841,0.09708371,92871.0,92870.0,0.11278]
[1763619086858,0.09708371,92871.0,92870.0,0.102]
[1763619087021,0.13804371,92871.0,92870.0,0.102]
[1763619087520,0.16486928,92871.0,92870.0,0.102]
[1763619089388,0.16486928,92871.0,92870.0,0.002]
[1763619092974,0.16486928,92871.0,92870.0,0.001]
[1763619093196,0.0107682,92866.0,92862.0,0.01076866]
[1763619093403,0.0121,92861.0,92860.0,0.22614472]
[1763619093573,0.01574,92861.0,92860.0,0.01076889]
[1763619093917,0.22615326,92858.0,92851.0,0.01076994]
[1763619094116,0.21538413,92858.0,92853.0,0.01076971]
[1763619094279,0.21542626,92858.0,92854.0,0.01076959]
[1763619094664,0.21902633,92857.0,92852.0,0.01076982]
[1763619094904,0.00364,92857.0,92854.0,0.01076959]
[1763619095106,0.00364,92857.0,92856.0,0.1]
[1763619095314,0.10072371,92857.0,92856.0,0.1]
[1763619096303,0.11618371,92857.0,92856.0,0.1]
[1763619096525,0.13976371,92857.0,92856.0,0.101]
[1763619096734,0.13976371,92857.0,92856.0,0.102]
[1763619097695,0.13976371,92857.0,92856.0,0.002]
[1763619102206,0.22616767,92852.0,92846.0,0.21540898]
[1763619102352,0.01076994,92851.0,92848.0,0.01077029]
[1763619102551,0.0121,92851.0,92846.0,0.2261795]
[1763619102820,0.02286994,92851.0,92848.0,0.01077029]
[1763619103342,0.02286994,92851.0,92849.0,0.1]
[1763619103946,0.21540118,92850.0,92849.0,0.1]
[1763619104565,0.25444118,92850.0,92849.0,0.1]
[1763619105576,0.25544118,92850.0,92849.0,0.1]
[1763619106090,0.25644118,92850.0,92849.0,0.1]
[1763619109345,0.04104,92850.0,92849.0,0.1]
[1763619109640,0.04428557,92850.0,92849.0,0.1]
[1763619112447,0.06786557,92850.0,92849.0,0.1]
[1763619112628,0.28326675,92850.0,92849.0,0.1]
[1763619112828,0.25644118,92850.0,92849.0,0.1]
[1763619114591,0.04104,92850.0,92849.0,0.1]
[1763619114789,0.28326675,92850.0,92849.0,0.1]
[1763619115017,0.25644118,92850.0,92849.0,0.1]
[1763619118299,0.27662362,92850.0,92849.0,0.1]
[1763619118702,0.21542726,92839.0,92835.0,0.01077179]
[1763619119031,0.09708371,92836.0,92834.0,0.22620893]
[1763619119602,0.21543598,92835.0,92833.0,0.01078]
[1763619119841,0.3232911,92836.0,92833.0,0.01078]
[1763619120184,0.3232911,92836.0,92835.0,0.1]
[1763619121151,0.3387511,92836.0,92835.0,0.1]
[1763619121388,0.3633311,92836.0,92835.0,0.1]
[1763619121631,0.3623311,92836.0,92835.0,0.1]
[1763619122009,0.3633311,92836.0,92835.0,0.1]
[1763619122168,0.3623311,92836.0,92835.0,0.1]
[1763619122574,0.3835231,92836.0,92835.0,0.1]
[1763619122828,0.3835231,92836.0,92821.0,0.01077342]
[1763619122829,0.01077284,92826.0,92822.0,0.0107733]
[1763619122968,0.00364,92825.0,92822.0,0.0107733]
[1763619123173,0.01077319,92823.0,92819.0,0.01078]
[1763619123425,0.09708371,92820.0,92819.0,0.01078]
[1763619123655,0.09708371,92820.0,92814.0,0.28433127]
[1763619123860,0.01077365,92819.0,92815.0,0.01077412]
[1763619124260,0.09708371,92820.0,92819.0,0.1]
[1763619124474,0.00364,92825.0,92822.0,0.21546502]
[1763619124606,0.00364,92825.0,92824.0,0.24142151]
[1763619125032,0.00364,92825.0,92824.0,0.26525151]
[1763619125631,0.00364,92825.0,92824.0,0.24142151]
[1763619126419,0.10785539,92836.0,92833.0,0.01077203]
[1763619126627,0.03458217,92835.0,92830.0,0.22621898]
[1763619126834,0.03094229,92834.0,92830.0,0.01077237]
[1763619127033,0.02017038,92833.0,92830.0,0.01077237]
[1763619127280,0.02017038,92832.0,92830.0,0.01077237]
[1763619127463,0.03473191,92834.0,92830.0,0.01077237]
[1763619127665,0.02016748,92833.0,92830.0,0.01077237]
[1763619127902,0.02016748,92832.0,92830.0,0.01077237]
[1763619128077,0.03473203,92833.0,92830.0,0.01077237]
[1763619129024,0.01077214,92832.0,92828.0,0.01077261]
[1763619129651,0.03473214,92832.0,92828.0,0.01077261]
[1763619130233,0.00364,92835.0,92832.0,0.22621349]
[1763619130430,0.00364,92835.0,92834.0,0.00202371]
[1763619130637,0.05062733,92835.0,92834.0,0.00202371]
[1763619130873,0.06669733,92835.0,92834.0,0.00202371]
[1763619131273,0.07049557,92835.0,92834.0,0.00202371]
[1763619131632,0.07049557,92835.0,92834.0,0.00302371]
[1763619132494,0.07049557,92835.0,92834.0,0.00402371]
[1763619134185,0.04367,92835.0,92834.0,0.00402371]
[1763619134399,0.06383011,92835.0,92834.0,0.00402371]
[1763619134605,0.09065568,92835.0,92834.0,0.00402371]
[1763619136383,0.09065633,92835.0,92834.0,0.00402371]
[1763619139766,0.12301102,92835.0,92834.0,0.00402371]
[1763619142341,0.12301222,92835.0,92834.0,0.00402371]
[1763619145421,0.12302096,92835.0,92834.0,0.00402371]
[1763619148115,0.12302096,92835.0,92834.0,0.00302371]
[1763619148493,0.12302096,92835.0,92834.0,0.00402371]
[1763619153193,0.12305221,92835.0,92834.0,0.00402371]
[1763619163485,0.13315696,92835.0,92834.0,0.00402371]
[1763619164463,0.14564696,92835.0,92834.0,0.00402371]
[1763619165048,0.14200696,92835.0,92834.0,0.00402371]
[1763619165244,0.14564696,92835.0,92834.0,0.00402371]
[1763619165443,0.14200696,92835.0,92834.0,0.00402371]
[1763619165835,0.13554221,92835.0,92834.0,0.00402371]
[1763619168861,0.02384195,92835.0,92834.0,0.00402371]
[1763619169195,0.02384195,92835.0,92834.0,0.01936371]
[1763619169399,0.00364,92835.0,92834.0,0.04197371]
[1763619171427,0.00564,92835.0,92833.0,0.15341739]
[1763619172099,0.00564,92835.0,92834.0,0.1]
[1763619172286,0.00364,92835.0,92834.0,0.1]
[1763619172510,0.00464,92835.0,92834.0,0.1]
[1763619172682,0.00564,92835.0,92834.0,0.1]
[1763619172884,0.00364,92835.0,92834.0,0.1]
[1763619173255,0.00564,92835.0,92834.0,0.1]
[1763619176248,0.00564,92835.0,92834.0,0.3154383]
[1763619183147,0.00564,92835.0,92834.0,0.3146383]
[1763619184770,0.00564,92835.0,92834.0,0.0992]
[1763619184927,0.04671,92835.0,92834.0,0.0992]
[1763619186011,0.28897155,92835.0,92834.0,0.0992]
[1763619186205,0.26214598,92835.0,92834.0,0.0992]
[1763619186416,0.04671,92835.0,92834.0,0.0992]
[1763619186653,0.07353557,92835.0,92834.0,0.0992]
[1763619187058,0.07153557,92835.0,92834.0,0.0992]
[1763619193701,0.09172023,92835.0,92834.0,0.0992]
[1763619193910,0.14382272,92835.0,92834.0,0.0992]
[1763619194114,0.46682272,92835.0,92834.0,0.0992]
[1763619194341,0.46682272,92835.0,92814.0,0.0001264]
[1763619194342,0.21548241,92815.0,92814.0,0.0001264]
[1763619194566,0.34445612,92815.0,92814.0,0.0001264]
[1763619194916,0.36892612,92815.0,92814.0,0.0001264]
[1763619196182,0.36892612,92815.0,92814.0,0.0011264]
[1763619196383,0.36892612,92815.0,92814.0,0.0021264]
[1763619199275,0.11237371,92815.0,92814.0,0.0021264]
[1763619199411,0.11237371,92815.0,92814.0,0.0011264]
[1763619199608,0.11237371,92815.0,92814.0,0.0021264]
[1763619199811,0.11237371,92815.0,92814.0,0.00169804]
[1763619200040,0.11237371,92815.0,92814.0,0.00269804]
[1763619200951,0.12897371,92815.0,92814.0,0.00269804]
[1763619201162,0.15344371,92815.0,92814.0,0.00269804]
[1763619201524,0.12897371,92815.0,92814.0,0.00269804]
[1763619202874,0.16133196,92815.0,92814.0,0.00269804]
[1763619204278,0.18815753,92815.0,92814.0,0.00269804]
[1763619207644,0.21262753,92815.0,92814.0,0.00269804]
[1763619210524,0.21262753,92815.0,92814.0,0.00169804]
[1763619210726,0.23277452,92815.0,92814.0,0.00169804]
[1763619210966,0.23277452,92815.0,92814.0,0.00069804]
[1763619211188,0.28487701,92815.0,92814.0,0.00169804]
[1763619211379,0.25805144,92815.0,92814.0,0.00069804]
[1763619213108,2.25805144,92815.0,92814.0,0.00069804]
[1763619215283,2.58105144,92815.0,92814.0,0.00069804]
[1763619218970,2.59112871,92815.0,92814.0,0.00069804]
[1763619219299,2.59112871,92815.0,92780.0,0.0004]
[1763619219300,0.05210249,92802.0,92780.0,0.0004]
[1763619219506,0.76624367,92801.0,92800.0,0.00082207]
[1763619219645,0.76195923,92801.0,92800.0,0.00082207]
[1763619219859,0.77273846,92801.0,92800.0,0.00082207]
[1763619221731,0.77274111,92801.0,92800.0,0.00082207]
[1763619224497,2.77274111,92801.0,92800.0,0.00082207]
[1763619225342,2.78282474,92801.0,92800.0,0.00082207]
[1763619225549,2.80605847,92801.0,92800.0,0.00082207]
[1763619225794,0.21556137,92781.0,92780.0,0.0004]
[1763619226038,0.41647834,92781.0,92780.0,0.00052654]
[1763619226264,0.43900834,92781.0,92780.0,0.00052654]
[1763619226486,0.47138188,92781.0,92780.0,0.00052654]
[1763619230491,0.47137347,92781.0,92780.0,0.00052654]
[1763619230865,0.47137347,92781.0,92780.0,0.00149877]
[1763619230998,0.20370961,92781.0,92780.0,0.00149877]
[1763619233151,0.41927098,92781.0,92780.0,0.00149877]
[1763619233691,0.20370961,92781.0,92780.0,0.00149877]
[1763619235943,0.14960961,92781.0,92780.0,0.00149877]
[1763619236147,0.15324961,92781.0,92780.0,0.00149877]
[1763619236555,0.12087607,92781.0,92780.0,0.00149877]
[1763619237438,0.10072371,92781.0,92780.0,0.00149877]
[1763619237646,0.10072371,92781.0,92780.0,0.00249877]
[1763619238093,0.10072371,92781.0,92780.0,0.10249877]
[1763619238312,0.10072371,92781.0,92780.0,0.10349877]
[1763619240924,0.00364,92781.0,92780.0,0.10349877]
[1763619241849,0.00364,92781.0,92780.0,0.10249877]
[1763619242063,0.00364,92781.0,92780.0,0.10149877]
[1763619242283,0.00464,92781.0,92780.0,0.42449877]
[1763619242510,0.00464,92781.0,92780.0,0.4825674]
[1763619242752,0.001,92781.0,92780.0,0.42449877]
[1763619243372,0.00364,92797.0,92794.0,0.33377655]
[1763619243572,0.00364,92797.0,92796.0,0.323]
[1763619243778,0.00364,92797.0,92796.0,0.32351462]
[1763619244581,0.00464,92797.0,92796.0,0.32351462]
[1763619245193,0.00564,92797.0,92796.0,0.32351462]
[1763619245539,0.00564,92797.0,92796.0,0.42351462]
[1763619246533,0.00564,92797.0,92796.0,0.10051462]
[1763619246534,0.04668,92797.0,92796.0,0.10051462]
[1763619246739,0.07350557,92797.0,92796.0,0.10051462]
[1763619246935,0.17058928,92797.0,92796.0,0.10051462]
[1763619247075,0.17058928,92797.0,92796.0,0.00051462]
[1763619247502,0.16958928,92797.0,92796.0,0.00051462]
[1763619247680,0.38511348,92797.0,92796.0,0.00051462]
[1763619247882,0.35728791,92797.0,92796.0,0.00151462]
[1763619248299,0.35728791,92797.0,92796.0,0.00251462]
[1763619250871,0.14176371,92797.0,92796.0,0.00251462]
[1763619251074,0.10072371,92797.0,92796.0,0.00251462]
[1763619251869,0.11725371,92797.0,92796.0,0.00251462]
[1763619252078,0.16858928,92797.0,92796.0,0.00251462]
[1763619256903,0.51173616,92797.0,92796.0,0.00251462]
[1763619257092,0.48491059,92797.0,92796.0,0.00251462]
[1763619257709,0.48491059,92797.0,92796.0,0.00051462]
[1763619258514,0.22635088,92777.0,92772.0,0.06622985]
[1763619258688,0.09708371,92773.0,92772.0,0.01082133]
[1763619259435,0.09708371,92773.0,92772.0,4.222e-05]
[1763619259912,0.09708371,92773.0,92772.0,0.00104222]
[1763619260076,0.09708371,92773.0,92772.0,0.00204222]
[1763619260411,0.09708371,92773.0,92772.0,0.10204222]
[1763619260833,0.13812371,92773.0,92772.0,0.10204222]
[1763619261318,0.09708371,92773.0,92772.0,0.10204222]
[1763619261555,0.09708371,92773.0,92772.0,0.3176245]
[1763619261939,0.09708371,92773.0,92772.0,0.10204222]
[1763619263300,0.11361371,92773.0,92772.0,0.10204222]
[1763619264108,0.11361371,92773.0,92772.0,0.3176245]
[1763619264531,0.11361371,92773.0,92772.0,0.31831091]
[1763619265501,0.13812371,92773.0,92772.0,0.10272863]
[1763619272257,0.35370367,92773.0,92772.0,0.10272863]
[1763619274860,0.35370367,92773.0,92772.0,0.00172863]
[1763619275062,0.35370367,92773.0,92772.0,0.00272863]
[1763619275448,0.35370367,92773.0,92772.0,0.00172863]
[1763619275954,0.35370367,92773.0,92772.0,0.00272863]
[1763619285321,0.37390863,92773.0,92772.0,0.00272863]
[1763619288233,0.42601112,92773.0,92772.0,0.00172863]
[1763619288663,0.42601112,92773.0,92772.0,0.00072863]
[1763619293320,0.40580616,92773.0,92772.0,0.00072863]
[1763619293508,0.42601299,92773.0,92772.0,0.00072863]
[1763619295752,0.74901299,92773.0,92772.0,0.00072863]
[1763619296124,0.74901297,92773.0,92772.0,0.00072863]
[1763619297375,0.74901256,92773.0,92772.0,0.00072863]
[1763619300477,0.75911639,92773.0,92772.0,0.00072863]
[1763619300676,2.78239728,92773.0,92772.0,0.00072863]
[1763619301041,2.7867147,92773.0,92772.0,0.00072863]
[1763619301165,2.81578304,92773.0,92772.0,0.00072863]
[1763619301550,2.7867147,92773.0,92772.0,0.00072863]
[1763619302179,2.7887147,92773.0,92772.0,0.00072863]
[1763619302790,2.78871086,92773.0,92772.0,0.00072863]
[1763619303417,2.78871086,92773.0,92770.0,0.0004]
[1763619303418,0.53860785,92761.0,92760.0,0.0004]
[1763619303618,0.53860785,92761.0,92760.0,0.00052668]
[1763619303619,0.65261517,92761.0,92760.0,0.00052668]
[1763619303818,0.67628517,92761.0,92760.0,0.00052668]
[1763619304600,0.69954687,92761.0,92760.0,0.00052668]
[1763619305439,0.70054687,92761.0,92760.0,0.00052668]
[1763619306120,0.78291221,92761.0,92760.0,0.00052668]
[1763619308683,2.78291221,92761.0,92760.0,0.00052668]
[1763619308838,2.78291221,92761.0,92760.0,0.00086997]
[1763619310157,2.78291221,92761.0,92750.0,0.0004]
[1763619310158,0.59073358,92751.0,92750.0,0.0004]
[1763619310369,0.63889998,92751.0,92750.0,0.0004]
[1763619310566,0.66256998,92751.0,92750.0,0.0004]
[1763619311387,0.26775683,92741.0,92740.0,0.0004]
[1763619311563,0.41300694,92741.0,92740.0,0.0004]
[1763619311888,0.75967694,92741.0,92740.0,0.0004]
[1763619313129,0.76399565,92741.0,92740.0,0.0004]
[1763619322193,0.44099565,92741.0,92740.0,0.00097232]
[1763619325242,2.76399565,92741.0,92740.0,0.00097232]
[1763619325446,2.77407799,92741.0,92740.0,0.00097232]
[1763619326261,2.79731376,92741.0,92740.0,0.00097232]
[1763619326822,2.79831376,92741.0,92740.0,0.00097232]
[1763619327219,2.79931376,92741.0,92740.0,0.00097232]
[1763619327422,2.74721127,92741.0,92740.0,2.32e-06]
[1763619327624,2.79931376,92741.0,92740.0,2.32e-06]
[1763619327874,2.79928861,92741.0,92740.0,2.32e-06]
[1763619330890,0.02754,92715.0,92708.0,0.21573034]
[1763619331100,0.12462371,92711.0,92710.0,0.21619472]
[1763619331274,0.14480496,92711.0,92710.0,0.21619472]
[1763619331473,0.16858496,92711.0,92710.0,0.21619472]
[1763619331674,0.16858496,92711.0,92710.0,0.10046827]
[1763619331920,0.22068745,92711.0,92710.0,0.10046827]
[1763619332531,0.16858496,92711.0,92710.0,0.10046827]
[1763619332954,0.16858496,92711.0,92710.0,0.10146827]
[1763619333155,0.16858496,92711.0,92710.0,0.00146827]
[1763619333310,0.17222496,92711.0,92710.0,0.00146827]
[1763619333533,0.17222496,92711.0,92710.0,0.00046827]
[1763619335468,0.22432745,92711.0,92710.0,0.00046827]
[1763619336847,0.22519745,92711.0,92710.0,0.00046827]
[1763619337045,0.44092158,92711.0,92710.0,0.00132711]
[1763619338969,0.10346374,92711.0,92710.0,0.00132711]
[1763619339148,0.07601125,92711.0,92710.0,0.00132711]
[1763619339766,0.15493931,92711.0,92710.0,0.00132711]
[1763619340710,0.07601125,92711.0,92710.0,0.00132711]
[1763619341521,0.10283682,92711.0,92710.0,0.00132711]
[1763619341926,0.07601125,92711.0,92710.0,0.00132711]
[1763619342122,0.10283682,92711.0,92710.0,0.00132711]
[1763619342842,0.07601125,92711.0,92710.0,0.00132711]
[1763619344682,0.10283682,92711.0,92710.0,0.00132711]
[1763619345231,0.07601125,92711.0,92710.0,0.00132711]
[1763619346905,0.29173538,92711.0,92710.0,0.00132711]
[1763619347118,0.07601125,92711.0,92710.0,0.00132711]
[1763619348604,0.10283682,92711.0,92710.0,0.00132711]
[1763619349448,0.15493931,92711.0,92710.0,0.00132711]
[1763619351720,0.05136125,92711.0,92710.0,0.00132711]
[1763619351928,0.04772125,92711.0,92710.0,0.21705356]
[1763619352083,0.05136125,92711.0,92710.0,0.21705356]
[1763619352282,0.07601125,92711.0,92710.0,0.21705356]
[1763619354627,0.05136125,92711.0,92710.0,0.21705356]
[1763619355289,0.05583,92711.0,92710.0,0.21705356]
[1763619356230,0.01078481,92723.0,92710.0,0.21705356]
[1763619356231,0.01128,92731.0,92728.0,0.01078422]
[1763619356442,0.01128,92736.0,92733.0,0.22645458]
[1763619356639,0.02385058,92735.0,92734.0,0.21567062]
[1763619357402,0.00364,92735.0,92734.0,0.21567062]
[1763619358353,0.00364,92735.0,92734.0,0.21667062]
[1763619359173,0.00364,92735.0,92734.0,0.001]
[1763619360345,0.05608,92735.0,92734.0,0.001]
[1763619360546,0.08290557,92735.0,92734.0,0.001]
[1763619361117,0.05608,92735.0,92734.0,0.001]
[1763619361703,0.08284712,92735.0,92734.0,0.001]
[1763619368919,0.155171,92735.0,92734.0,0.001]
[1763619369479,0.26777311,92734.0,92732.0,0.00022897]
[1763619369679,0.114961,92733.0,92732.0,0.00022897]
[1763619369884,0.139961,92733.0,92732.0,0.00022897]
[1763619370328,0.462961,92733.0,92732.0,0.00022897]
[1763619370481,0.43613543,92733.0,92732.0,0.00022897]
[1763619370680,0.43614036,92733.0,92732.0,0.00022897]
[1763619370887,0.43614036,92733.0,92732.0,0.00122897]
[1763619372109,0.43614036,92733.0,92732.0,0.00022897]
[1763619373582,0.43614523,92733.0,92732.0,0.00022897]
[1763619374778,0.43614523,92733.0,92710.0,0.00046827]
[1763619374779,0.26782662,92711.0,92710.0,0.00046827]
[1763619374982,0.39690033,92711.0,92710.0,0.00046827]
[1763619375189,0.42190033,92711.0,92710.0,0.00046827]
[1763619378410,0.24409042,92704.0,92703.0,4.88876909]
[1763619378530,0.24409042,92704.0,92703.0,4.88919133]
[1763619378733,0.26909042,92704.0,92703.0,4.88919133]
[1763619379782,0.26909042,92704.0,92703.0,4.89019133]
[1763619380390,0.05335,92704.0,92703.0,4.89019133]
[1763619382230,0.02835,92704.0,92703.0,4.89019133]
[1763619382446,0.10956371,92711.0,92708.0,0.22651561]
[1763619382647,0.10956371,92711.0,92710.0,0.21572645]
[1763619382925,0.11320371,92711.0,92710.0,0.21572645]
[1763619383341,0.12398991,92711.0,92706.0,0.2265208]
[1763619383544,0.11320371,92711.0,92709.0,0.215727]
[1763619384825,0.01587,92710.0,92707.0,0.01078667]
[1763619385443,0.04087,92710.0,92707.0,0.01078667]
[1763619385659,0.01587,92710.0,92707.0,0.01078667]
[1763619385861,0.01587,92710.0,92709.0,0.21572878]
[1763619387876,0.03951,92710.0,92709.0,0.21572878]
[1763619388235,0.03951,92710.0,92709.0,0.001]
[1763619388926,0.06633557,92710.0,92709.0,0.001]
[1763619390491,0.03951,92710.0,92709.0,0.001]
[1763619390888,0.03951,92710.0,92709.0,0.00165848]
[1763619394079,0.3289294,92711.0,92709.0,0.21738726]
[1763619394080,0.11320371,92711.0,92709.0,0.21738726]
[1763619394374,0.11320371,92711.0,92709.0,0.21672878]
[1763619394975,0.10072371,92711.0,92709.0,0.21572878]
[1763619395383,0.10072371,92711.0,92709.0,0.21672878]
[1763619396027,0.10072371,92711.0,92709.0,0.001]
[1763619396247,0.03925,92710.0,92709.0,0.001]
[1763619397050,0.01078678,92706.0,92703.0,4.88919133]
[1763619397286,0.01188,92704.0,92703.0,4.88919133]
[1763619397467,0.02708,92704.0,92703.0,4.88919133]
[1763619398103,0.02708,92704.0,92703.0,4.89019133]
[1763619398728,0.02708,92704.0,92703.0,4.88919133]
[1763619398936,0.01188,92704.0,92703.0,5.10593407]
[1763619399070,0.01078597,92713.0,92708.0,0.01078655]
[1763619399293,0.22650731,92713.0,92708.0,0.22651766]
[1763619399497,0.01078609,92712.0,92710.0,0.00062984]
[1763619399773,0.12095076,92711.0,92710.0,0.00062984]
[1763619400514,0.10072371,92711.0,92710.0,0.00062984]
[1763619401311,0.10072371,92711.0,92710.0,0.00162984]
[1763619402400,0.11592371,92711.0,92710.0,0.00162984]
[1763619402607,0.13997371,92711.0,92710.0,0.00162984]
[1763619405644,0.11592371,92711.0,92710.0,0.00162984]
[1763619405878,0.33164784,92711.0,92710.0,0.00162984]
[1763619406093,0.33164784,92711.0,92706.0,0.01078678]
[1763619406311,0.12670991,92711.0,92706.0,0.01041662]
[1763619406522,0.01078643,92709.0,92706.0,0.01041662]
[1763619406979,0.01078655,92708.0,92703.0,4.89997846]